[Event "Titled Tuesday Blitz February 15 Early 2022"]
[White "Hajiyeva, Laman"]
[Black "Ruperez Benito, Antonio"]
[WhiteFideId "13415875"]
[BlackFideId "22245049"]
[WhiteElo "1728"]
[BlackElo "2249"]
[Result "0-1"]
[Round "04"]
[TimeControl "180+1"]
[Date "2022.02.15"]
[WhiteClock "0:00:13"]
[BlackClock "0:00:08"]

1. d4 {[%clk 0:02:57]}  d5 {[%clk 0:02:56]} 2. c4 {[%clk 0:02:57]}  c6 {[%clk 0:02:56]} 3. Nf3 {[%clk 0:02:57]}  Nf6 {[%clk 0:02:56]} 4. Nc3 {[%clk 0:02:56]}  dxc4 {[%clk 0:02:56]} 5. e4 {[%clk 0:02:54]}  b5 {[%clk 0:02:56]} 6. e5 {[%clk 0:02:48]}  Nd5 {[%clk 0:02:56]} 7. a4 {[%clk 0:02:47]}  e6 {[%clk 0:02:50]} 8. Ne4 {[%clk 0:02:38]}  Bb4+ {[%clk 0:02:49]} 9. Bd2 {[%clk 0:02:38]}  Bxd2+ {[%clk 0:02:47]} 10. Qxd2 {[%clk 0:02:39]}  O-O {[%clk 0:02:46]} 11. Nd6 {[%clk 0:02:35]}  Qb6 {[%clk 0:02:27]} 12. Ng5 {[%clk 0:02:24]}  h6 {[%clk 0:02:21]} 13. Ngxf7 {[%clk 0:02:24]}  Rxf7 {[%clk 0:02:19]} 14. Nxc8 {[%clk 0:02:24]}  c3 {[%clk 0:01:29]} 15. bxc3 {[%clk 0:02:20]}  Qa5 {[%clk 0:01:30]} 16. Bd3 {[%clk 0:01:48]}  Qxc3 {[%clk 0:01:22]} 17. Qxc3 {[%clk 0:01:46]}  Nxc3 {[%clk 0:01:23]} 18. axb5 {[%clk 0:01:45]}  Nxb5 {[%clk 0:01:23]} 19. Bxb5 {[%clk 0:01:42]}  cxb5 {[%clk 0:01:24]} 20. Nb6 {[%clk 0:01:42]}  Nc6 {[%clk 0:00:43]} 21. Nxa8 {[%clk 0:01:40]}  Nxd4 {[%clk 0:00:43]} 22. O-O {[%clk 0:01:38]}  b4 {[%clk 0:00:26]} 23. Rfd1 {[%clk 0:01:25]}  Ne2+ {[%clk 0:00:26]} 24. Kf1 {[%clk 0:01:25]}  Nc3 {[%clk 0:00:26]} 25. Rd8+ {[%clk 0:01:24]}  Kh7 {[%clk 0:00:25]} 26. Rb8 {[%clk 0:01:24]}  Nd5 {[%clk 0:00:18]} 27. g3 {[%clk 0:00:46]}  h5 {[%clk 0:00:17]} 28. Ke2 {[%clk 0:00:46]}  Kg6 {[%clk 0:00:17]} 29. f4 {[%clk 0:00:45]}  Kf5 {[%clk 0:00:17]} 30. Kf3 {[%clk 0:00:43]}  g5 {[%clk 0:00:16]} 31. Rh8 {[%clk 0:00:42]}  g4+ {[%clk 0:00:15]} 32. Kg2 {[%clk 0:00:41]}  Ke4 {[%clk 0:00:15]} 33. Rxh5 {[%clk 0:00:38]}  b3 {[%clk 0:00:14]} 34. Rb1 {[%clk 0:00:35]}  Rb7 {[%clk 0:00:14]} 35. Rh8 {[%clk 0:00:30]}  b2 {[%clk 0:00:14]} 36. Rc8 {[%clk 0:00:29]}  Ne3+ {[%clk 0:00:14]} 37. Kg1 {[%clk 0:00:28]}  a5 {[%clk 0:00:12]} 38. Rc7 {[%clk 0:00:26]}  Rb5 {[%clk 0:00:12]} 39. Rc3 {[%clk 0:00:24]}  a4 {[%clk 0:00:12]} 40. Nc7 {[%clk 0:00:23]}  Rb7 {[%clk 0:00:11]} 41. Nxe6 {[%clk 0:00:23]}  Nd5 {[%clk 0:00:10]} 42. Rc4+ {[%clk 0:00:20]}  Kd3 {[%clk 0:00:10]} 43. Rd4+ {[%clk 0:00:20]}  Kc2 {[%clk 0:00:10]} 44. Rxb2+ {[%clk 0:00:20]}  Kxb2 {[%clk 0:00:10]} 45. Rxd5 {[%clk 0:00:21]}  a3 {[%clk 0:00:11]} 46. Nc5 {[%clk 0:00:17]}  Rb8 {[%clk 0:00:10]} 47. Na4+ {[%clk 0:00:15]}  Kb3 {[%clk 0:00:09]} 48. Nc5+ {[%clk 0:00:15]}  Kc4 {[%clk 0:00:10]} 49. Rd3 {[%clk 0:00:15]}  a2 {[%clk 0:00:10]} 50. Ra3 {[%clk 0:00:15]}  Rb1+ {[%clk 0:00:10]} 51. Kf2 {[%clk 0:00:15]}  a1=Q {[%clk 0:00:11]} 52. Rxa1 {[%clk 0:00:16]}  Rxa1 {[%clk 0:00:12]} 53. Ne6 {[%clk 0:00:16]}  Kd5 {[%clk 0:00:12]} 54. Ng7 {[%clk 0:00:15]}  Ra2+ {[%clk 0:00:13]} 55. Ke3 {[%clk 0:00:15]}  Rxh2 {[%clk 0:00:13]} 56. Nf5 {[%clk 0:00:15]}  Rg2 {[%clk 0:00:11]} 57. Nh6 {[%clk 0:00:13]}  Rxg3+ {[%clk 0:00:11]} 58. Kf2 {[%clk 0:00:13]}  Rf3+ {[%clk 0:00:11]} 59. Kg2 {[%clk 0:00:13]}  Rxf4 {[%clk 0:00:11]} 60. Kg3 {[%clk 0:00:14]}  Kxe5 {[%clk 0:00:11]} 61. Nxg4+ {[%clk 0:00:14]}  Kf5 {[%clk 0:00:10]} 62. Ne3+ {[%clk 0:00:13]}  Kg5 {[%clk 0:00:11]} 63. Ng2 {[%clk 0:00:13]}  Ra4 {[%clk 0:00:11]} 64. Ne3 {[%clk 0:00:13]}  Ra3 {[%clk 0:00:11]} 65. Kf3 {[%clk 0:00:13]}  Rb3 {[%clk 0:00:11]} 66. Ke4 {[%clk 0:00:14]}  Rb4+ {[%clk 0:00:11]} 67. Kf3 {[%clk 0:00:14]}  Rf4+ {[%clk 0:00:11]} 68. Ke2 {[%clk 0:00:14]}  Rf8 {[%clk 0:00:11]} 69. Kd3 {[%clk 0:00:15]}  Kf4 {[%clk 0:00:11]} 70. Nd5+ {[%clk 0:00:15]}  Kf3 {[%clk 0:00:12]} 71. Kd4 {[%clk 0:00:15]}  Rf5 {[%clk 0:00:12]} 72. Nc3 {[%clk 0:00:14]}  Rf4+ {[%clk 0:00:10]} 73. Kc5 {[%clk 0:00:14]}  Rh4 {[%clk 0:00:08]} 74. Nd5 {[%clk 0:00:14]}  Ke4 {[%clk 0:00:08]} 75. Kc6 {[%clk 0:00:14]}  Rh6+ {[%clk 0:00:08]} 76. Kc5 {[%clk 0:00:13]}  Rh5 {[%clk 0:00:08]} 0-1


[Site "https://www.chess.com"]

[Event "Titled Tuesday Blitz February 15 Early 2022"]
[White "Hakobyan, Aram"]
[Black "Safarli, Eltaj"]
[WhiteFideId "13306677"]
[BlackFideId "13402129"]
[WhiteElo "2557"]
[BlackElo "2634"]
[Result "0-1"]
[Round "04"]
[TimeControl "180+1"]
[Date "2022.02.15"]
[WhiteClock "0:00:02"]
[BlackClock "0:00:04"]

1. e4 {[%clk 0:03:00]}  e5 {[%clk 0:02:59]} 2. Nf3 {[%clk 0:03:01]}  Nc6 {[%clk 0:02:59]} 3. Bb5 {[%clk 0:03:01]}  a6 {[%clk 0:02:59]} 4. Ba4 {[%clk 0:03:01]}  d6 {[%clk 0:03:00]} 5. c3 {[%clk 0:02:57]}  Bd7 {[%clk 0:03:00]} 6. d4 {[%clk 0:02:56]}  g6 {[%clk 0:03:01]} 7. O-O {[%clk 0:02:55]}  Bg7 {[%clk 0:03:01]} 8. h3 {[%clk 0:02:54]}  b5 {[%clk 0:03:00]} 9. Bc2 {[%clk 0:02:53]}  Nf6 {[%clk 0:03:00]} 10. Re1 {[%clk 0:02:44]}  O-O {[%clk 0:03:01]} 11. Nbd2 {[%clk 0:02:44]}  Re8 {[%clk 0:03:00]} 12. Nf1 {[%clk 0:02:43]}  Nh5 {[%clk 0:02:53]} 13. Bg5 {[%clk 0:02:35]}  Qb8 {[%clk 0:02:42]} 14. Qd2 {[%clk 0:02:27]}  b4 {[%clk 0:02:24]} 15. d5 {[%clk 0:01:53]}  bxc3 {[%clk 0:02:21]} 16. bxc3 {[%clk 0:01:54]}  Na5 {[%clk 0:02:09]} 17. Rab1 {[%clk 0:01:51]}  Qc8 {[%clk 0:02:07]} 18. Bd3 {[%clk 0:01:49]}  Nb7 {[%clk 0:02:04]} 19. Be3 {[%clk 0:01:00]}  Nf4 {[%clk 0:02:03]} 20. Bxf4 {[%clk 0:00:38]}  exf4 {[%clk 0:02:04]} 21. c4 {[%clk 0:00:38]}  Nc5 {[%clk 0:02:03]} 22. Bc2 {[%clk 0:00:39]}  Qd8 {[%clk 0:01:30]} 23. Qxf4 {[%clk 0:00:37]}  Qf6 {[%clk 0:01:31]} 24. Qxf6 {[%clk 0:00:32]}  Bxf6 {[%clk 0:01:31]} 25. N1d2 {[%clk 0:00:27]}  a5 {[%clk 0:01:28]} 26. Re3 {[%clk 0:00:24]}  a4 {[%clk 0:01:26]} 27. Rbe1 {[%clk 0:00:17]}  Rab8 {[%clk 0:01:26]} 28. e5 {[%clk 0:00:16]}  Bxe5 {[%clk 0:01:13]} 29. Nxe5 {[%clk 0:00:16]}  Rxe5 {[%clk 0:01:14]} 30. Rxe5 {[%clk 0:00:15]}  dxe5 {[%clk 0:01:15]} 31. Ne4 {[%clk 0:00:14]}  Nxe4 {[%clk 0:01:12]} 32. Bxe4 {[%clk 0:00:15]}  f5 {[%clk 0:00:59]} 33. Bd3 {[%clk 0:00:14]}  e4 {[%clk 0:00:57]} 34. Bf1 {[%clk 0:00:15]}  Rb2 {[%clk 0:00:57]} 35. a3 {[%clk 0:00:14]}  Kf8 {[%clk 0:00:39]} 36. c5 {[%clk 0:00:14]}  Rc2 {[%clk 0:00:27]} 37. c6 {[%clk 0:00:13]}  Be8 {[%clk 0:00:27]} 38. Rb1 {[%clk 0:00:13]}  Ke7 {[%clk 0:00:27]} 39. Rb4 {[%clk 0:00:10]}  Bf7 {[%clk 0:00:27]} 40. Bc4 {[%clk 0:00:07]}  Kd6 {[%clk 0:00:22]} 41. Rxa4 {[%clk 0:00:06]}  f4 {[%clk 0:00:21]} 42. Bb3 {[%clk 0:00:03]}  Rc3 {[%clk 0:00:19]} 43. Ba2 {[%clk 0:00:03]}  Rc1+ {[%clk 0:00:14]} 44. Kh2 {[%clk 0:00:03]}  Rc2 {[%clk 0:00:05]} 45. Bb3 {[%clk 0:00:03]}  Rb2 {[%clk 0:00:04]} 46. Bc4 {[%clk 0:00:03]}  e3 {[%clk 0:00:04]} 47. fxe3 {[%clk 0:00:04]}  fxe3 {[%clk 0:00:05]} 48. Ra8 {[%clk 0:00:05]}  Kc5 {[%clk 0:00:05]} 49. Ba6 {[%clk 0:00:04]}  Bxd5 {[%clk 0:00:05]} 50. Re8 {[%clk 0:00:03]}  Rxg2+ {[%clk 0:00:05]} 51. Kh1 {[%clk 0:00:03]}  e2 {[%clk 0:00:04]} 52. Bc4 {[%clk 0:00:01]}  Kxc4 {[%clk 0:00:04]} 53. Re4+ {[%clk 0:00:02]}  Bxe4 {[%clk 0:00:04]} 0-1


[Site "https://www.chess.com"]

[Event "Titled Tuesday Blitz February 15 Early 2022"]
[White "Hamley, Ryan"]
[Black "Pinheiro, Iung Alicio de O."]
[WhiteFideId "30959497"]
[BlackFideId "2104350"]
[WhiteElo "2395"]
[BlackElo "2640"]
[Result "0-1"]
[Round "04"]
[TimeControl "180+1"]
[Date "2022.02.15"]
[WhiteClock "0:00:04"]
[BlackClock "0:00:13"]

1. d4 {[%clk 0:03:00]}  Nf6 {[%clk 0:02:58]} 2. c4 {[%clk 0:03:00]}  g6 {[%clk 0:02:58]} 3. Nc3 {[%clk 0:03:00]}  d5 {[%clk 0:02:58]} 4. Nf3 {[%clk 0:03:00]}  Bg7 {[%clk 0:02:58]} 5. Qb3 {[%clk 0:03:01]}  dxc4 {[%clk 0:02:57]} 6. Qxc4 {[%clk 0:03:02]}  O-O {[%clk 0:02:57]} 7. e4 {[%clk 0:03:02]}  Nc6 {[%clk 0:02:56]} 8. Be2 {[%clk 0:03:00]}  e5 {[%clk 0:02:39]} 9. d5 {[%clk 0:02:48]}  Ne7 {[%clk 0:02:29]} 10. O-O {[%clk 0:02:45]}  c6 {[%clk 0:02:27]} 11. dxc6 {[%clk 0:02:29]}  Nxc6 {[%clk 0:02:25]} 12. Rd1 {[%clk 0:02:29]}  Qb6 {[%clk 0:02:23]} 13. Be3 {[%clk 0:02:29]}  Qa5 {[%clk 0:01:36]} 14. h3 {[%clk 0:02:08]}  Be6 {[%clk 0:01:35]} 15. Qc5 {[%clk 0:02:08]}  h6 {[%clk 0:01:06]} 16. Rac1 {[%clk 0:01:17]}  Rfc8 {[%clk 0:01:04]} 17. a3 {[%clk 0:01:06]}  Bf8 {[%clk 0:00:57]} 18. Qxa5 {[%clk 0:01:05]}  Nxa5 {[%clk 0:00:58]} 19. Nxe5 {[%clk 0:01:05]}  Nb3 {[%clk 0:00:51]} 20. Rb1 {[%clk 0:01:03]}  Bxa3 {[%clk 0:00:35]} 21. bxa3 {[%clk 0:01:00]}  Rxc3 {[%clk 0:00:35]} 22. Bxh6 {[%clk 0:00:59]}  Nxe4 {[%clk 0:00:36]} 23. Bf3 {[%clk 0:00:52]}  Rxf3 {[%clk 0:00:31]} 24. g3 {[%clk 0:00:50]}  Nc3 {[%clk 0:00:28]} 25. Nxf3 {[%clk 0:00:42]}  Nxd1 {[%clk 0:00:24]} 26. Rxd1 {[%clk 0:00:42]}  Bxh3 {[%clk 0:00:24]} 27. Rb1 {[%clk 0:00:25]}  Nc5 {[%clk 0:00:18]} 28. Be3 {[%clk 0:00:25]}  b6 {[%clk 0:00:18]} 29. Rc1 {[%clk 0:00:23]}  Rc8 {[%clk 0:00:18]} 30. Ng5 {[%clk 0:00:20]}  Bd7 {[%clk 0:00:18]} 31. Rd1 {[%clk 0:00:20]}  Ba4 {[%clk 0:00:17]} 32. Rd4 {[%clk 0:00:20]}  f6 {[%clk 0:00:17]} 33. Ne4 {[%clk 0:00:18]}  Rc6 {[%clk 0:00:16]} 34. Nxc5 {[%clk 0:00:18]}  bxc5 {[%clk 0:00:16]} 35. Rxa4 {[%clk 0:00:18]}  c4 {[%clk 0:00:15]} 36. Rxa7 {[%clk 0:00:16]}  c3 {[%clk 0:00:16]} 37. Kf1 {[%clk 0:00:15]}  c2 {[%clk 0:00:16]} 38. Bc1 {[%clk 0:00:15]}  Rd6 {[%clk 0:00:17]} 39. Ke2 {[%clk 0:00:13]}  Rd1 {[%clk 0:00:17]} 40. Be3 {[%clk 0:00:07]}  c1=Q {[%clk 0:00:17]} 41. Bxc1 {[%clk 0:00:07]}  Rxc1 {[%clk 0:00:18]} 42. a4 {[%clk 0:00:07]}  Ra1 {[%clk 0:00:19]} 43. Kf3 {[%clk 0:00:08]}  Ra3+ {[%clk 0:00:19]} 44. Kg4 {[%clk 0:00:08]}  Kf8 {[%clk 0:00:19]} 45. f4 {[%clk 0:00:08]}  Kg8 {[%clk 0:00:18]} 46. a5 {[%clk 0:00:09]}  Ra4 {[%clk 0:00:17]} 47. Kf3 {[%clk 0:00:07]}  Kf8 {[%clk 0:00:17]} 48. a6 {[%clk 0:00:06]}  Kg8 {[%clk 0:00:17]} 49. Ke3 {[%clk 0:00:05]}  g5 {[%clk 0:00:13]} 50. fxg5 {[%clk 0:00:02]}  fxg5 {[%clk 0:00:14]} 51. Kd3 {[%clk 0:00:02]}  Kh8 {[%clk 0:00:14]} 52. Kc3 {[%clk 0:00:03]}  Ra1 {[%clk 0:00:14]} 53. Kb4 {[%clk 0:00:03]}  Rb1+ {[%clk 0:00:13]} 54. Kc5 {[%clk 0:00:03]}  Rc1+ {[%clk 0:00:13]} 55. Kb6 {[%clk 0:00:03]}  Rb1+ {[%clk 0:00:13]} 56. Kc7 {[%clk 0:00:04]}  Rf1 {[%clk 0:00:13]} 0-1


[Site "https://www.chess.com"]

[Event "Titled Tuesday Blitz February 15 Early 2022"]
[White "Harshavardhan G B"]
[Black "Grischuk, Alexander"]
[WhiteFideId "25059009"]
[BlackFideId "4126025"]
[WhiteElo "1831"]
[BlackElo "2762"]
[Result "0-1"]
[Round "04"]
[TimeControl "180+1"]
[Date "2022.02.15"]
[WhiteClock "0:00:14"]
[BlackClock "0:00:05"]

1. e4 {[%clk 0:02:56]}  d5 {[%clk 0:02:58]} 2. exd5 {[%clk 0:02:55]}  Qxd5 {[%clk 0:02:59]} 3. Nc3 {[%clk 0:02:56]}  Qa5 {[%clk 0:02:59]} 4. g3 {[%clk 0:02:54]}  Nf6 {[%clk 0:02:59]} 5. Bg2 {[%clk 0:02:54]}  c6 {[%clk 0:02:55]} 6. Nge2 {[%clk 0:02:54]}  e5 {[%clk 0:02:55]} 7. O-O {[%clk 0:02:53]}  Be7 {[%clk 0:02:54]} 8. a3 {[%clk 0:02:53]}  O-O {[%clk 0:02:53]} 9. Rb1 {[%clk 0:02:53]}  Qc7 {[%clk 0:02:52]} 10. d3 {[%clk 0:02:53]}  Be6 {[%clk 0:02:41]} 11. b4 {[%clk 0:02:52]}  Nbd7 {[%clk 0:02:40]} 12. b5 {[%clk 0:02:51]}  Nd5 {[%clk 0:02:36]} 13. bxc6 {[%clk 0:02:49]}  bxc6 {[%clk 0:02:37]} 14. Kh1 {[%clk 0:02:44]}  Nc5 {[%clk 0:02:23]} 15. Bd2 {[%clk 0:02:38]}  Bd6 {[%clk 0:01:55]} 16. d4 {[%clk 0:02:26]}  Nd7 {[%clk 0:01:49]} 17. Ne4 {[%clk 0:02:24]}  Bxa3 {[%clk 0:01:48]} 18. c4 {[%clk 0:02:10]}  N5f6 {[%clk 0:01:41]} 19. Nxf6+ {[%clk 0:01:48]}  Nxf6 {[%clk 0:01:42]} 20. Qa4 {[%clk 0:01:44]}  Be7 {[%clk 0:01:35]} 21. Bxc6 {[%clk 0:01:41]}  exd4 {[%clk 0:01:30]} 22. Bxa8 {[%clk 0:01:37]}  Rxa8 {[%clk 0:01:28]} 23. Nxd4 {[%clk 0:01:36]}  Bxc4 {[%clk 0:01:27]} 24. Rfc1 {[%clk 0:01:34]}  Bd5+ {[%clk 0:01:26]} 25. Kg1 {[%clk 0:01:34]}  Qd8 {[%clk 0:01:15]} 26. Nc6 {[%clk 0:01:30]}  Qd7 {[%clk 0:01:15]} 27. Nxe7+ {[%clk 0:01:24]}  Qxe7 {[%clk 0:01:16]} 28. Bg5 {[%clk 0:01:12]}  Qe6 {[%clk 0:01:09]} 29. Qf4 {[%clk 0:01:00]}  Nd7 {[%clk 0:01:02]} 30. Re1 {[%clk 0:00:51]}  Qh3 {[%clk 0:01:02]} 31. Rb8+ {[%clk 0:00:38]}  Nf8 {[%clk 0:00:40]} 32. f3 {[%clk 0:00:37]}  Rxb8 {[%clk 0:00:14]} 33. Qxb8 {[%clk 0:00:36]}  Bxf3 {[%clk 0:00:15]} 34. Kf2 {[%clk 0:00:36]}  Qg2+ {[%clk 0:00:07]} 35. Ke3 {[%clk 0:00:36]}  f6 {[%clk 0:00:07]} 36. Qb3+ {[%clk 0:00:33]}  Bd5 {[%clk 0:00:07]} 37. Qd3 {[%clk 0:00:25]}  fxg5 {[%clk 0:00:06]} 38. Rf1 {[%clk 0:00:23]}  Bf7 {[%clk 0:00:04]} 39. Qf5 {[%clk 0:00:21]}  Qb7 {[%clk 0:00:03]} 40. Qxg5 {[%clk 0:00:20]}  h6 {[%clk 0:00:04]} 41. Qf5 {[%clk 0:00:19]}  Qe7+ {[%clk 0:00:04]} 42. Kf2 {[%clk 0:00:19]}  Ne6 {[%clk 0:00:04]} 43. Kg1 {[%clk 0:00:18]}  Ng5 {[%clk 0:00:04]} 44. h4 {[%clk 0:00:18]}  Nh7 {[%clk 0:00:04]} 45. Qc8+ {[%clk 0:00:18]}  Nf8 {[%clk 0:00:04]} 46. Qf5 {[%clk 0:00:18]}  Be6 {[%clk 0:00:04]} 47. Qf4 {[%clk 0:00:18]}  Qd7 {[%clk 0:00:04]} 48. Kh2 {[%clk 0:00:18]}  Ng6 {[%clk 0:00:04]} 49. Qe4 {[%clk 0:00:18]}  Ne7 {[%clk 0:00:04]} 50. Rf2 {[%clk 0:00:17]}  Nd5 {[%clk 0:00:04]} 51. Qe5 {[%clk 0:00:17]}  Bf7 {[%clk 0:00:04]} 52. Qb8+ {[%clk 0:00:17]}  Kh7 {[%clk 0:00:04]} 53. Qb1+ {[%clk 0:00:18]}  Bg6 {[%clk 0:00:04]} 54. Qd1 {[%clk 0:00:18]}  Qc6 {[%clk 0:00:04]} 55. Qf3 {[%clk 0:00:18]}  Qd6 {[%clk 0:00:04]} 56. h5 {[%clk 0:00:18]}  Be8 {[%clk 0:00:04]} 57. Qf5+ {[%clk 0:00:18]}  Kg8 {[%clk 0:00:03]} 58. Qe4 {[%clk 0:00:17]}  Bf7 {[%clk 0:00:03]} 59. Qf3 {[%clk 0:00:16]}  Nf6 {[%clk 0:00:03]} 60. Qa8+ {[%clk 0:00:15]}  Kh7 {[%clk 0:00:03]} 61. Qxa7 {[%clk 0:00:14]}  Ng4+ {[%clk 0:00:03]} 62. Kg2 {[%clk 0:00:13]}  Bd5+ {[%clk 0:00:03]} 63. Kg1 {[%clk 0:00:13]}  Qxg3+ {[%clk 0:00:03]} 64. Kf1 {[%clk 0:00:13]}  Qxf2+ {[%clk 0:00:03]} 65. Qxf2 {[%clk 0:00:13]}  Nxf2 {[%clk 0:00:04]} 66. Kxf2 {[%clk 0:00:14]}  Bf7 {[%clk 0:00:05]} 0-1


[Site "https://www.chess.com"]

[Event "Titled Tuesday Blitz February 15 Early 2022"]
[White "Idrisov, Ildar F"]
[Black "Cramling Bellon, Anna"]
[WhiteFideId "4151020"]
[BlackFideId "32009232"]
[WhiteElo "2209"]
[BlackElo "1905"]
[Result "0-1"]
[Round "04"]
[TimeControl "180+1"]
[Date "2022.02.15"]
[WhiteClock "0:00:37"]
[BlackClock "0:00:04"]

1. Nf3 {[%clk 0:03:00]}  c5 {[%clk 0:02:56]} 2. b3 {[%clk 0:03:00]}  d5 {[%clk 0:02:55]} 3. Bb2 {[%clk 0:03:00]}  Nc6 {[%clk 0:02:56]} 4. e3 {[%clk 0:03:00]}  Nf6 {[%clk 0:02:56]} 5. d4 {[%clk 0:03:01]}  e6 {[%clk 0:02:44]} 6. Bd3 {[%clk 0:03:00]}  Be7 {[%clk 0:02:39]} 7. Nbd2 {[%clk 0:02:59]}  cxd4 {[%clk 0:02:38]} 8. exd4 {[%clk 0:02:59]}  O-O {[%clk 0:02:39]} 9. a3 {[%clk 0:02:58]}  Bd7 {[%clk 0:02:40]} 10. O-O {[%clk 0:02:58]}  a6 {[%clk 0:02:40]} 11. Ne5 {[%clk 0:02:56]}  Rc8 {[%clk 0:02:39]} 12. Qf3 {[%clk 0:02:55]}  Qc7 {[%clk 0:02:37]} 13. Qh3 {[%clk 0:02:51]}  g6 {[%clk 0:02:31]} 14. Qh6 {[%clk 0:02:50]}  Rfd8 {[%clk 0:02:21]} 15. Ndf3 {[%clk 0:02:47]}  Bf8 {[%clk 0:02:18]} 16. Qh4 {[%clk 0:02:46]}  Bg7 {[%clk 0:02:06]} 17. Ng5 {[%clk 0:02:46]}  Be8 {[%clk 0:02:04]} 18. Rae1 {[%clk 0:02:42]}  h6 {[%clk 0:02:01]} 19. Ngf3 {[%clk 0:02:31]}  Ne7 {[%clk 0:01:50]} 20. Bc1 {[%clk 0:02:28]}  Kh7 {[%clk 0:01:17]} 21. g4 {[%clk 0:02:26]}  Ne4 {[%clk 0:01:11]} 22. Bxh6 {[%clk 0:02:17]}  Bxh6 {[%clk 0:01:06]} 23. g5 {[%clk 0:02:17]}  Nf5 {[%clk 0:01:02]} 24. Qh3 {[%clk 0:02:11]}  f6 {[%clk 0:00:52]} 25. Ng4 {[%clk 0:01:30]}  fxg5 {[%clk 0:00:38]} 26. Bxe4 {[%clk 0:01:24]}  dxe4 {[%clk 0:00:39]} 27. Nxg5+ {[%clk 0:01:20]}  Kg8 {[%clk 0:00:33]} 28. Nxh6+ {[%clk 0:01:18]}  Nxh6 {[%clk 0:00:33]} 29. Qxh6 {[%clk 0:01:18]}  Qe7 {[%clk 0:00:22]} 30. Rxe4 {[%clk 0:01:14]}  Rd5 {[%clk 0:00:19]} 31. Rh4 {[%clk 0:01:10]}  Qxg5+ {[%clk 0:00:18]} 32. Qxg5 {[%clk 0:01:04]}  Rxg5+ {[%clk 0:00:19]} 33. Kh1 {[%clk 0:01:04]}  Rxc2 {[%clk 0:00:19]} 34. Rf4 {[%clk 0:00:58]}  Bc6+ {[%clk 0:00:19]} 35. f3 {[%clk 0:00:58]}  Rgg2 {[%clk 0:00:19]} 36. Rh4 {[%clk 0:00:51]}  Rgf2 {[%clk 0:00:17]} 37. Kg1 {[%clk 0:00:50]}  Rxf1+ {[%clk 0:00:13]} 38. Kxf1 {[%clk 0:00:51]}  Bxf3 {[%clk 0:00:14]} 39. Rf4 {[%clk 0:00:50]}  Bd5 {[%clk 0:00:13]} 40. b4 {[%clk 0:00:49]}  Rc3 {[%clk 0:00:09]} 41. Kf2 {[%clk 0:00:49]}  Rxa3 {[%clk 0:00:09]} 42. Rg4 {[%clk 0:00:47]}  Rb3 {[%clk 0:00:09]} 43. Rxg6+ {[%clk 0:00:46]}  Kf7 {[%clk 0:00:10]} 44. Rg4 {[%clk 0:00:46]}  Rxb4 {[%clk 0:00:10]} 45. h4 {[%clk 0:00:46]}  Rb2+ {[%clk 0:00:06]} 46. Ke3 {[%clk 0:00:46]}  Rh2 {[%clk 0:00:06]} 47. Kf4 {[%clk 0:00:45]}  b5 {[%clk 0:00:06]} 48. Kg5 {[%clk 0:00:44]}  b4 {[%clk 0:00:05]} 49. Rg1 {[%clk 0:00:44]}  b3 {[%clk 0:00:05]} 50. h5 {[%clk 0:00:43]}  b2 {[%clk 0:00:05]} 51. Rf1+ {[%clk 0:00:43]}  Kg7 {[%clk 0:00:04]} 52. Re1 {[%clk 0:00:37]}  a5 {[%clk 0:00:04]} 0-1


[Site "https://www.chess.com"]

[Event "Titled Tuesday Blitz February 15 Early 2022"]
[White "Jain Kashish Manoj"]
[Black "Toncheva, Nadya"]
[WhiteFideId "35081098"]
[BlackFideId "2924056"]
[WhiteElo "1681"]
[BlackElo "1920"]
[Result "0-1"]
[Round "04"]
[TimeControl "180+1"]
[Date "2022.02.15"]
[WhiteClock "0:01:40"]
[BlackClock "0:01:53"]

1. e4 {[%clk 0:02:59]}  c5 {[%clk 0:03:00]} 2. Nf3 {[%clk 0:02:58]}  Nc6 {[%clk 0:03:00]} 3. Bb5 {[%clk 0:02:58]}  e6 {[%clk 0:03:00]} 4. O-O {[%clk 0:02:57]}  Nge7 {[%clk 0:03:00]} 5. d4 {[%clk 0:02:56]}  cxd4 {[%clk 0:02:57]} 6. Nxd4 {[%clk 0:02:57]}  Qb6 {[%clk 0:02:54]} 7. Nxc6 {[%clk 0:02:56]}  Nxc6 {[%clk 0:02:54]} 8. c4 {[%clk 0:02:46]}  a6 {[%clk 0:02:53]} 9. Bxc6 {[%clk 0:02:46]}  bxc6 {[%clk 0:02:54]} 10. b3 {[%clk 0:02:42]}  Be7 {[%clk 0:02:51]} 11. Bb2 {[%clk 0:02:40]}  O-O {[%clk 0:02:51]} 12. Nc3 {[%clk 0:02:18]}  a5 {[%clk 0:02:46]} 13. Na4 {[%clk 0:02:16]}  Qc7 {[%clk 0:02:43]} 14. Qd3 {[%clk 0:02:02]}  e5 {[%clk 0:02:35]} 15. Rfd1 {[%clk 0:01:57]}  d6 {[%clk 0:02:29]} 16. c5 {[%clk 0:01:57]}  dxc5 {[%clk 0:02:18]} 17. Rac1 {[%clk 0:01:52]}  Ba6 {[%clk 0:02:17]} 18. Qg3 {[%clk 0:01:52]}  f6 {[%clk 0:02:06]} 19. Nxc5 {[%clk 0:01:51]}  Bxc5 {[%clk 0:01:59]} 20. Rxc5 {[%clk 0:01:52]}  Rfd8 {[%clk 0:01:58]} 21. Rdc1 {[%clk 0:01:53]}  Qb6 {[%clk 0:01:56]} 22. Rxc6 {[%clk 0:01:40]}  Qxc6 {[%clk 0:01:53]} 0-1


[Site "https://www.chess.com"]

[Event "Titled Tuesday Blitz February 15 Early 2022"]
[White "Jakubowska, Anna"]
[Black "Sargsyan, Anna M."]
[WhiteFideId "1121952"]
[BlackFideId "13308130"]
[WhiteElo "1924"]
[BlackElo "2271"]
[Result "1-0"]
[Round "04"]
[TimeControl "180+1"]
[Date "2022.02.15"]
[WhiteClock "0:01:19"]
[BlackClock "0:00:30"]

1. e4 {[%clk 0:03:00]}  c6 {[%clk 0:01:18]} 2. d4 {[%clk 0:02:59]}  d5 {[%clk 0:01:10]} 3. e5 {[%clk 0:03:00]}  c5 {[%clk 0:01:10]} 4. dxc5 {[%clk 0:02:59]}  e6 {[%clk 0:01:10]} 5. a3 {[%clk 0:02:59]}  Bxc5 {[%clk 0:01:10]} 6. b4 {[%clk 0:02:59]}  Bb6 {[%clk 0:01:10]} 7. Nf3 {[%clk 0:02:59]}  Ne7 {[%clk 0:01:10]} 8. Bd3 {[%clk 0:02:57]}  a5 {[%clk 0:01:11]} 9. Bb2 {[%clk 0:02:56]}  axb4 {[%clk 0:01:11]} 10. axb4 {[%clk 0:02:56]}  Rxa1 {[%clk 0:01:11]} 11. Bxa1 {[%clk 0:02:57]}  Nbc6 {[%clk 0:01:12]} 12. b5 {[%clk 0:02:50]}  Nb4 {[%clk 0:01:10]} 13. O-O {[%clk 0:02:47]}  Nxd3 {[%clk 0:01:08]} 14. cxd3 {[%clk 0:02:44]}  O-O {[%clk 0:01:08]} 15. Re1 {[%clk 0:02:37]}  Bd7 {[%clk 0:01:08]} 16. Qb3 {[%clk 0:02:36]}  Qa8 {[%clk 0:01:09]} 17. Nc3 {[%clk 0:02:33]}  Rc8 {[%clk 0:01:09]} 18. Na4 {[%clk 0:02:28]}  Ba5 {[%clk 0:01:07]} 19. Rb1 {[%clk 0:02:22]}  h6 {[%clk 0:01:04]} 20. Bd4 {[%clk 0:02:16]}  Nf5 {[%clk 0:01:04]} 21. Bb6 {[%clk 0:02:16]}  Be8 {[%clk 0:00:49]} 22. g4 {[%clk 0:02:12]}  Ne7 {[%clk 0:00:48]} 23. Bxa5 {[%clk 0:01:38]}  Qxa5 {[%clk 0:00:48]} 24. Qb4 {[%clk 0:01:39]}  Qxb4 {[%clk 0:00:34]} 25. Rxb4 {[%clk 0:01:40]}  g5 {[%clk 0:00:33]} 26. d4 {[%clk 0:01:34]}  Rc1+ {[%clk 0:00:32]} 27. Kg2 {[%clk 0:01:33]}  Ng6 {[%clk 0:00:33]} 28. Nd2 {[%clk 0:01:26]}  Nf4+ {[%clk 0:00:30]} 29. Kf3 {[%clk 0:01:26]}  Rc3+ {[%clk 0:00:30]} 30. Nxc3 {[%clk 0:01:19]} 1-0


[Site "https://www.chess.com"]